[Event "*** Titled Tuesday Blitz"]
[Site "Chess.com"]
[Date "2021.02.16"]
[Round "5"]
[White "GMKrikor"]
[Black "johnathan113"]
[Result "1-0"]
[WhiteElo "2815"]
[BlackElo "2606"]
[TimeControl "180+1"]
[EndTime "10:59:31 PST"]
[Termination "GMKrikor won by checkmate"]

1. Nf3 {[%clk 0:03:00.9]} 1... Nf6 {[%clk 0:02:59.7]} 2. c4 {[%clk 0:03:00.5]}
2... c5 {[%clk 0:02:59.8]} 3. Nc3 {[%clk 0:03:00.3]} 3... g6 {[%clk 0:03:00.3]}
4. e4 {[%clk 0:02:57.9]} 4... Bg7 {[%clk 0:02:57.7]} 5. d4 {[%clk 0:02:54.8]}
5... cxd4 {[%clk 0:02:58.6]} 6. Nxd4 {[%clk 0:02:55.6]} 6... O-O {[%clk
0:02:58.8]} 7. Be2 {[%clk 0:02:53.7]} 7... Nc6 {[%clk 0:02:59.3]} 8. Be3 {[%clk
0:02:52]} 8... b6 {[%clk 0:02:58.5]} 9. O-O {[%clk 0:02:45.2]} 9... Bb7 {[%clk
0:02:58.5]} 10. f3 {[%clk 0:02:42]} 10... e6 {[%clk 0:02:58.9]} 11. Qd2 {[%clk
0:02:32.9]} 11... d5 {[%clk 0:02:55.5]} 12. cxd5 {[%clk 0:02:30.8]} 12... exd5
{[%clk 0:02:56.4]} 13. Nxc6 {[%clk 0:02:30.8]} 13... Bxc6 {[%clk 0:02:57.3]} 14.
e5 {[%clk 0:02:31.4]} 14... Ne8 {[%clk 0:02:57.5]} 15. f4 {[%clk 0:02:18.5]}
15... f6 {[%clk 0:02:57.3]} 16. e6 {[%clk 0:01:42.1]} 16... f5 {[%clk 0:02:52]}
17. Bf3 {[%clk 0:01:20.8]} 17... Nc7 {[%clk 0:02:45.1]} 18. Rad1 {[%clk
0:01:16.8]} 18... Re8 {[%clk 0:02:37.7]} 19. Bd4 {[%clk 0:01:10.1]} 19... Bxd4+
{[%clk 0:02:33.1]} 20. Qxd4 {[%clk 0:01:11]} 20... Nxe6 {[%clk 0:02:33.6]} 21.
Bxd5 {[%clk 0:01:06.7]} 21... Bxd5 {[%clk 0:02:27.1]} 22. Qxd5 {[%clk
0:01:07.6]} 22... Qxd5 {[%clk 0:02:19.5]} 23. Nxd5 {[%clk 0:01:06.8]} 23... Kf7
{[%clk 0:02:18.6]} 24. Nb4 {[%clk 0:00:59.8]} 24... Rac8 {[%clk 0:02:13.4]} 25.
g3 {[%clk 0:00:54.1]} 25... Red8 {[%clk 0:01:59.7]} 26. Nd3 {[%clk 0:00:48.5]}
26... Rc2 {[%clk 0:01:54.9]} 27. Ne5+ {[%clk 0:00:48]} 27... Kf6 {[%clk
0:01:47.6]} 28. Rxd8 {[%clk 0:00:45.4]} 28... Nxd8 {[%clk 0:01:48.5]} 29. Rd1
{[%clk 0:00:45.3]} 29... Ne6 {[%clk 0:01:31.6]} 30. Rd7 {[%clk 0:00:42.5]} 30...
Nc5 {[%clk 0:01:31.9]} 31. Rxh7 {[%clk 0:00:32.5]} 31... Ne4 {[%clk 0:01:22.2]}
32. Rf7+ {[%clk 0:00:29.4]} 32... Ke6 {[%clk 0:01:22.1]} 33. Rg7 {[%clk
0:00:29.8]} 33... g5 {[%clk 0:01:18.7]} 34. Nf3 {[%clk 0:00:30.1]} 34... Kf6
{[%clk 0:00:57.7]} 35. Rxa7 {[%clk 0:00:24.1]} 35... g4 {[%clk 0:00:38.5]} 36.
Nd4 {[%clk 0:00:23.9]} 36... Rxb2 {[%clk 0:00:26.6]} 37. Rc7 {[%clk 0:00:19.1]}
37... Nf2 {[%clk 0:00:22.7]} 38. Rc6+ {[%clk 0:00:18]} 38... Kf7 {[%clk
0:00:23.1]} 39. Nxf5 {[%clk 0:00:16.6]} 39... Nh3+ {[%clk 0:00:22.6]} 40. Kf1
{[%clk 0:00:17.2]} 40... Rxh2 {[%clk 0:00:21.3]} 41. Rxb6 {[%clk 0:00:17.5]}
41... Rxa2 {[%clk 0:00:13]} 42. Nh6+ {[%clk 0:00:17.6]} 42... Ke7 {[%clk
0:00:13.5]} 43. Nxg4 {[%clk 0:00:18.5]} 43... Ra1+ {[%clk 0:00:05.9]} 44. Kg2
{[%clk 0:00:18]} 44... Ng1 {[%clk 0:00:06.5]} 45. Rb3 {[%clk 0:00:13.1]} 45...
Kf7 {[%clk 0:00:05.8]} 46. Re3 {[%clk 0:00:12.8]} 46... Kg6 {[%clk 0:00:06]} 47.
Nh2 {[%clk 0:00:08.3]} 47... Kf5 {[%clk 0:00:04.7]} 48. Re5+ {[%clk 0:00:08.3]}
48... Kf6 {[%clk 0:00:05.2]} 49. Nf1 {[%clk 0:00:06.8]} 49... Nf3 {[%clk
0:00:02.1]} 50. Kxf3 {[%clk 0:00:06.6]} 50... Rxf1+ {[%clk 0:00:02.7]} 51. Kg4
{[%clk 0:00:07.3]} 51... Ra1 {[%clk 0:00:02.8]} 52. Rb5 {[%clk 0:00:07.4]} 52...
Ra6 {[%clk 0:00:03.2]} 53. Kh4 {[%clk 0:00:07.3]} 53... Rc6 {[%clk 0:00:02]} 54.
g4 {[%clk 0:00:07.4]} 54... Rd6 {[%clk 0:00:01.2]} 55. g5+ {[%clk 0:00:07.6]}
55... Kg6 {[%clk 0:00:02.1]} 56. Kg4 {[%clk 0:00:08.5]} 56... Rd4 {[%clk
0:00:02.4]} 57. Rb6+ {[%clk 0:00:08.3]} 57... Kg7 {[%clk 0:00:02.6]} 58. Re6
{[%clk 0:00:05.8]} 58... Kf7 {[%clk 0:00:02.3]} 59. Re5 {[%clk 0:00:05.8]} 59...
Rd1 {[%clk 0:00:03.2]} 60. Kf5 {[%clk 0:00:06.1]} 60... Ra1 {[%clk 0:00:03.2]}
61. g6+ {[%clk 0:00:06.4]} 61... Kf8 {[%clk 0:00:03.7]} 62. Kg5 {[%clk
0:00:05.7]} 62... Rg1+ {[%clk 0:00:02.3]} 63. Kf6 {[%clk 0:00:05.3]} 63... Rg2
{[%clk 0:00:01.2]} 64. f5 {[%clk 0:00:05.5]} 64... Rg4 {[%clk 0:00:01.6]} 65.
g7+ {[%clk 0:00:04.4]} 65... Kg8 {[%clk 0:00:02]} 66. Re8+ {[%clk 0:00:04.1]}
66... Kh7 {[%clk 0:00:02.5]} 67. Rh8# {[%clk 0:00:05]} 1-0

[Event "*** Titled Tuesday Blitz"]
[Site "Chess.com"]
[Date "2021.02.16"]
[Round "5"]
[White "dretch"]
[Black "dozer80"]
[Result "1-0"]
[WhiteElo "2844"]
[BlackElo "2614"]
[TimeControl "180+1"]
[EndTime "10:59:32 PST"]
[Termination "dretch won by resignation"]

1. d4 {[%clk 0:03:00.9]} 1... d5 {[%clk 0:02:57.9]} 2. c4 {[%clk 0:03:01.2]}
2... c6 {[%clk 0:02:58.2]} 3. Nc3 {[%clk 0:03:01.2]} 3... Nf6 {[%clk 0:02:58.6]}
4. e3 {[%clk 0:03:01.5]} 4... a6 {[%clk 0:02:58.2]} 5. b3 {[%clk 0:02:56.5]}
5... b5 {[%clk 0:02:57]} 6. Bd2 {[%clk 0:02:49.1]} 6... Bf5 {[%clk 0:02:51]} 7.
Nf3 {[%clk 0:02:44.9]} 7... e6 {[%clk 0:02:51.1]} 8. Ne5 {[%clk 0:02:43.5]} 8...
Nfd7 {[%clk 0:02:48]} 9. g4 {[%clk 0:02:41.1]} 9... Bg6 {[%clk 0:02:46.2]} 10.
Nxg6 {[%clk 0:02:39.7]} 10... hxg6 {[%clk 0:02:47.1]} 11. Bg2 {[%clk 0:02:35.1]}
11... Bd6 {[%clk 0:02:38.9]} 12. cxd5 {[%clk 0:02:22.8]} 12... cxd5 {[%clk
0:02:37.2]} 13. e4 {[%clk 0:02:22.3]} 13... Nb6 {[%clk 0:02:10.3]} 14. exd5
{[%clk 0:02:15.3]} 14... exd5 {[%clk 0:02:09.6]} 15. Nxd5 {[%clk 0:01:49.9]}
15... Nxd5 {[%clk 0:02:09.4]} 16. Bxd5 {[%clk 0:01:43.6]} 16... Ra7 {[%clk
0:02:10]} 17. Qf3 {[%clk 0:01:38.3]} 17... Re7+ {[%clk 0:02:08.7]} 18. Kf1
{[%clk 0:01:37.8]} 18... O-O {[%clk 0:01:53.9]} 19. Bg5 {[%clk 0:01:35]} 19...
Nd7 {[%clk 0:01:45.7]} 20. Bxe7 {[%clk 0:01:30.7]} 20... Qxe7 {[%clk 0:01:46.6]}
21. Re1 {[%clk 0:01:28.4]} 21... Qh4 {[%clk 0:01:45.3]} 22. Re8 {[%clk
0:00:30.4]} 22... Rxe8 {[%clk 0:00:46.3]} 23. Qxf7+ {[%clk 0:00:28.7]} 23... Kh7
{[%clk 0:00:46.7]} 24. Qxe8 {[%clk 0:00:28.1]} 24... Nf6 {[%clk 0:00:47.3]} 25.
Qe6 {[%clk 0:00:10.7]} 25... Qh3+ {[%clk 0:00:47.2]} 26. Bg2 {[%clk 0:00:08.1]}
26... Qd3+ {[%clk 0:00:47.3]} 27. Kg1 {[%clk 0:00:07.2]} 27... Qxd4 {[%clk
0:00:44.9]} 28. h3 {[%clk 0:00:06.7]} 28... Bc5 {[%clk 0:00:32.2]} 29. Qe2
{[%clk 0:00:06.5]} 29... Qa1+ {[%clk 0:00:23.1]} 30. Bf1 {[%clk 0:00:06.1]}
30... Nd5 {[%clk 0:00:21.7]} 31. Qf3 {[%clk 0:00:05.2]} 31... Qd4 {[%clk
0:00:18.1]} 32. h4 {[%clk 0:00:04.7]} 32... Nf6 {[%clk 0:00:17.1]} 33. g5 {[%clk
0:00:04.3]} 33... Ng4 {[%clk 0:00:16.8]} 34. h5 {[%clk 0:00:04.8]} 34... Nxf2
{[%clk 0:00:08.8]} 35. hxg6+ {[%clk 0:00:04.4]} 35... Kxg6 {[%clk 0:00:09.7]}
36. Qh5+ {[%clk 0:00:04.6]} 36... Kf5 {[%clk 0:00:10.3]} 37. Qf7+ {[%clk
0:00:04.5]} 37... Ke5 {[%clk 0:00:10.7]} 38. Qxg7+ {[%clk 0:00:04.5]} 38... Kf4
{[%clk 0:00:11.3]} 39. Qxd4+ {[%clk 0:00:03.4]} 39... Bxd4 {[%clk 0:00:12.2]}
40. Rh4+ {[%clk 0:00:03.8]} 40... Ng4+ {[%clk 0:00:12.8]} 41. Kg2 {[%clk
0:00:04.3]} 41... Kxg5 {[%clk 0:00:13.5]} 42. Rh1 {[%clk 0:00:03.9]} 42... Ne3+
{[%clk 0:00:13.9]} 43. Kf3 {[%clk 0:00:04.2]} 43... Nf5 {[%clk 0:00:14.3]} 44.
Bg2 {[%clk 0:00:03.6]} 44... Nh4+ {[%clk 0:00:13.9]} 45. Kg3 {[%clk 0:00:04.1]}
45... Be5+ {[%clk 0:00:14.1]} 46. Kh3 {[%clk 0:00:04.7]} 46... Ng6 {[%clk
0:00:13.6]} 47. Rb1 {[%clk 0:00:03.3]} 47... Nf4+ {[%clk 0:00:13.8]} 48. Kh2
{[%clk 0:00:03.9]} 48... b4 {[%clk 0:00:13.5]} 49. Kg1 {[%clk 0:00:03.9]} 49...
Bd4+ {[%clk 0:00:13.1]} 50. Kf1 {[%clk 0:00:04]} 50... a5 {[%clk 0:00:13.5]} 51.
Rd1 {[%clk 0:00:04]} 51... Be3 {[%clk 0:00:11.5]} 52. Rd8 {[%clk 0:00:04.3]}
52... Kg4 {[%clk 0:00:08.5]} 53. Rg8+ {[%clk 0:00:03.8]} 53... Kf5 {[%clk
0:00:08.5]} 54. Ra8 {[%clk 0:00:04.7]} 54... Bb6 {[%clk 0:00:08.1]} 55. Ra6
{[%clk 0:00:04.3]} 55... Bd8 {[%clk 0:00:08.3]} 56. Kf2 {[%clk 0:00:04.5]} 56...
Nd3+ {[%clk 0:00:07.7]} 57. Ke3 {[%clk 0:00:04.3]} 57... Ne5 {[%clk 0:00:08.1]}
58. Be4+ {[%clk 0:00:04.6]} 58... Kg5 {[%clk 0:00:07.7]} 59. Kd4 {[%clk
0:00:05.5]} 59... Bf6 {[%clk 0:00:06.5]} 60. Kd5 {[%clk 0:00:05.8]} 60... Ng4
{[%clk 0:00:04.2]} 61. Rxa5 {[%clk 0:00:05.4]} 61... Ne3+ {[%clk 0:00:05.1]} 62.
Ke6+ {[%clk 0:00:05.4]} 62... Kf4 {[%clk 0:00:05]} 63. Kxf6 {[%clk 0:00:05.8]}
63... Kxe4 {[%clk 0:00:05.5]} 64. Ke6 {[%clk 0:00:06.3]} 64... Kd4 {[%clk
0:00:05.1]} 65. Kd6 {[%clk 0:00:06]} 65... Kc3 {[%clk 0:00:05.2]} 66. Kc5 {[%clk
0:00:05.9]} 66... Nd1 {[%clk 0:00:04.5]} 67. Ra4 {[%clk 0:00:05.7]} 67... Nb2
{[%clk 0:00:04.7]} 68. Kb5 {[%clk 0:00:04.4]} 68... Nd3 {[%clk 0:00:03.9]} 69.
Ra8 {[%clk 0:00:04.2]} 69... Nc1 {[%clk 0:00:03.8]} 70. Rc8+ {[%clk 0:00:04.4]}
70... Kb2 {[%clk 0:00:04.2]} 71. Rxc1 {[%clk 0:00:05.3]} 71... Kxc1 {[%clk
0:00:05]} 72. Kxb4 {[%clk 0:00:05.9]} 72... Kb2 {[%clk 0:00:05.7]} 73. a4 {[%clk
0:00:06.8]} 1-0

[Event "*** Titled Tuesday Blitz"]
[Site "Chess.com"]
[Date "2021.02.16"]
[Round "5"]
[White "sorch29"]
[Black "Hercog"]
[Result "1-0"]
[WhiteElo "2162"]
[BlackElo "2349"]
[TimeControl "180+1"]
[EndTime "10:59:38 PST"]
[Termination "sorch29 won on time"]

1. c4 {[%clk 0:03:00.9]} 1... g6 {[%clk 0:02:58.9]} 2. d4 {[%clk 0:02:59.9]}
2... Nf6 {[%clk 0:02:58.5]} 3. Nc3 {[%clk 0:03:00.8]} 3... d5 {[%clk 0:02:58.4]}
4. Bf4 {[%clk 0:02:58.8]} 4... Bg7 {[%clk 0:02:57.7]} 5. e3 {[%clk 0:02:59]}
5... O-O {[%clk 0:02:57.2]} 6. Rc1 {[%clk 0:02:59.2]} 6... Be6 {[%clk
0:02:53.8]} 7. c5 {[%clk 0:02:54.5]} 7... c6 {[%clk 0:02:51]} 8. h3 {[%clk
0:02:53.2]} 8... Bc8 {[%clk 0:02:35.4]} 9. Nf3 {[%clk 0:02:50.6]} 9... Re8
{[%clk 0:02:28.7]} 10. Be2 {[%clk 0:02:36.4]} 10... Nfd7 {[%clk 0:02:25.2]} 11.
O-O {[%clk 0:02:31.9]} 11... e5 {[%clk 0:02:24.7]} 12. Bh2 {[%clk 0:02:31.2]}
12... e4 {[%clk 0:02:22.2]} 13. Nd2 {[%clk 0:02:30.6]} 13... f5 {[%clk
0:02:21.1]} 14. b4 {[%clk 0:02:28.4]} 14... a6 {[%clk 0:02:19.8]} 15. a4 {[%clk
0:02:27.4]} 15... Nf6 {[%clk 0:02:19.2]} 16. b5 {[%clk 0:02:25.1]} 16... axb5
{[%clk 0:02:18.8]} 17. axb5 {[%clk 0:02:26]} 17... Nbd7 {[%clk 0:02:12.4]} 18.
Ra1 {[%clk 0:02:11.7]} 18... Rxa1 {[%clk 0:02:11.1]} 19. Qxa1 {[%clk 0:02:12.6]}
19... g5 {[%clk 0:02:10.6]} 20. Qa8 {[%clk 0:02:06.7]} 20... Re6 {[%clk
0:02:06.7]} 21. Na4 {[%clk 0:01:56.3]} 21... Qe8 {[%clk 0:01:59.5]} 22. Rb1
{[%clk 0:01:51]} 22... f4 {[%clk 0:01:46.9]} 23. bxc6 {[%clk 0:01:26]} 23...
Rxc6 {[%clk 0:01:44.5]} 24. Bb5 {[%clk 0:01:22.6]} 24... Re6 {[%clk 0:01:43]}
25. c6 {[%clk 0:01:05.3]} 25... bxc6 {[%clk 0:01:41.2]} 26. Bxc6 {[%clk
0:01:05.2]} 26... Qf8 {[%clk 0:01:09.4]} 27. Nc5 {[%clk 0:00:21.6]} 27... Nxc5
{[%clk 0:01:07]} 28. dxc5 {[%clk 0:00:22.3]} 28... Bd7 {[%clk 0:01:03.4]} 29.
Bxd5 {[%clk 0:00:19.4]} 29... Nxd5 {[%clk 0:01:00.3]} 30. Qxd5 {[%clk
0:00:18.6]} 30... Qf7 {[%clk 0:00:57.8]} 31. Rb7 {[%clk 0:00:16.4]} 31... Re7
{[%clk 0:00:54]} 32. Rb8+ {[%clk 0:00:14.2]} 32... Be8 {[%clk 0:00:47]} 33.
Qxf7+ {[%clk 0:00:13.6]} 33... Kxf7 {[%clk 0:00:46.7]} 34. exf4 {[%clk
0:00:13.2]} 34... Bd4 {[%clk 0:00:41.3]} 35. Nb3 {[%clk 0:00:11.2]} 35... Rd7
{[%clk 0:00:32.8]} 36. Nxd4 {[%clk 0:00:07.7]} 36... Rxd4 {[%clk 0:00:32.8]} 37.
Kf1 {[%clk 0:00:08.6]} 37... Rc4 {[%clk 0:00:28]} 38. fxg5 {[%clk 0:00:07.8]}
38... Rxc5 {[%clk 0:00:27.9]} 39. Bf4 {[%clk 0:00:07.8]} 39... Bc6 {[%clk
0:00:25.2]} 40. Be3 {[%clk 0:00:05.9]} 40... Rc2 {[%clk 0:00:24.2]} 41. Ke1
{[%clk 0:00:05.8]} 41... Kg6 {[%clk 0:00:23]} 42. Rb6 {[%clk 0:00:05.9]} 42...
Kf7 {[%clk 0:00:22.2]} 43. Kd1 {[%clk 0:00:06.2]} 43... Ba4 {[%clk 0:00:21]} 44.
Ke1 {[%clk 0:00:06.4]} 44... Ra2 {[%clk 0:00:18.3]} 45. Rb7+ {[%clk 0:00:06.4]}
45... Kg6 {[%clk 0:00:17.1]} 46. g4 {[%clk 0:00:07.3]} 46... Bc2 {[%clk
0:00:14.4]} 47. Rb6+ {[%clk 0:00:08.1]} 47... Kf7 {[%clk 0:00:13.8]} 48. h4
{[%clk 0:00:08.4]} 48... Bd3 {[%clk 0:00:13.2]} 49. h5 {[%clk 0:00:08.2]} 49...
Re2+ {[%clk 0:00:12.3]} 50. Kd1 {[%clk 0:00:08.5]} 50... Ra2 {[%clk 0:00:11.4]}
51. g6+ {[%clk 0:00:08.7]} 51... hxg6 {[%clk 0:00:11.1]} 52. hxg6+ {[%clk
0:00:09.5]} 52... Kg8 {[%clk 0:00:07.8]} 53. Bd4 {[%clk 0:00:09.4]} 53... Ra8
{[%clk 0:00:05.8]} 54. Kd2 {[%clk 0:00:08.4]} 54... Ra2+ {[%clk 0:00:03.9]} 55.
Ke3 {[%clk 0:00:08.4]} 55... Ra8 {[%clk 0:00:03.7]} 56. Kf4 {[%clk 0:00:08.6]}
56... Rf8+ {[%clk 0:00:03.5]} 57. Kg5 {[%clk 0:00:08.9]} 57... Rf3 {[%clk
0:00:01.4]} 58. Rb8+ {[%clk 0:00:07.4]} 1-0

[Event "*** Titled Tuesday Blitz"]
[Site "Chess.com"]
[Date "2021.02.16"]
[Round "5"]
[White "davidkalashian"]
[Black "eduardoperalta"]
[Result "0-1"]
[WhiteElo "2561"]
[BlackElo "2419"]
[TimeControl "180+1"]
[EndTime "10:59:41 PST"]
[Termination "eduardoperalta won by resignation"]

1. d4 {[%clk 0:02:59.3]} 1... Nf6 {[%clk 0:02:59.2]} 2. c4 {[%clk 0:02:58.4]}
2... c5 {[%clk 0:02:58.6]} 3. Nf3 {[%clk 0:02:57.8]} 3... g6 {[%clk 0:02:57.7]}
4. Nc3 {[%clk 0:02:56.7]} 4... Bg7 {[%clk 0:02:57.6]} 5. d5 {[%clk 0:02:55.6]}
5... O-O {[%clk 0:02:57]} 6. e4 {[%clk 0:02:56.1]} 6... d6 {[%clk 0:02:57.1]} 7.
Be2 {[%clk 0:02:56.6]} 7... e5 {[%clk 0:02:51.6]} 8. h3 {[%clk 0:02:48.9]} 8...
Ne8 {[%clk 0:02:48.9]} 9. g4 {[%clk 0:02:48.5]} 9... a6 {[%clk 0:02:46.8]} 10.
a4 {[%clk 0:02:47.6]} 10... b6 {[%clk 0:02:42]} 11. Bg5 {[%clk 0:02:39.2]} 11...
Qc7 {[%clk 0:02:36.2]} 12. Qd2 {[%clk 0:02:35.4]} 12... Kh8 {[%clk 0:02:30.1]}
13. Bh6 {[%clk 0:02:30.1]} 13... f6 {[%clk 0:02:23.9]} 14. Bxg7+ {[%clk
0:02:21.8]} 14... Qxg7 {[%clk 0:02:21.2]} 15. O-O-O {[%clk 0:02:14]} 15... b5
{[%clk 0:02:19.2]} 16. cxb5 {[%clk 0:02:11.2]} 16... axb5 {[%clk 0:02:18.9]} 17.
Bxb5 {[%clk 0:02:10.9]} 17... Na6 {[%clk 0:02:18.1]} 18. Bc6 {[%clk 0:02:07.8]}
18... Rb8 {[%clk 0:02:16.7]} 19. Nb5 {[%clk 0:02:07.9]} 19... Qe7 {[%clk
0:02:13.4]} 20. Qh6 {[%clk 0:02:03]} 20... Nb4 {[%clk 0:01:53.1]} 21. Rhg1
{[%clk 0:01:40.3]} 21... Ba6 {[%clk 0:01:42.1]} 22. Nh4 {[%clk 0:01:37.6]} 22...
Kg8 {[%clk 0:01:39]} 23. Nf5 {[%clk 0:01:36.2]} 23... gxf5 {[%clk 0:01:22.7]}
24. gxf5+ {[%clk 0:01:37.1]} 24... Kh8 {[%clk 0:01:20.6]} 25. Rg3 {[%clk
0:01:32.8]} 25... Bxb5 {[%clk 0:01:08.6]} 26. axb5 {[%clk 0:01:30.4]} 26... Nc7
{[%clk 0:01:07.8]} 27. Rdg1 {[%clk 0:01:24.2]} 27... Rf7 {[%clk 0:01:05.3]} 28.
b6 {[%clk 0:01:22.9]} 28... Nca6 {[%clk 0:00:59.7]} 29. b7 {[%clk 0:01:22.7]}
29... c4 {[%clk 0:00:56.3]} 30. Ra3 {[%clk 0:01:01.1]} 30... Rg7 {[%clk
0:00:47.3]} 31. Rg4 {[%clk 0:00:29.7]} 31... Rbg8 {[%clk 0:00:35.3]} 32. Kd2
{[%clk 0:00:07.9]} 32... Rxg4 {[%clk 0:00:29.2]} 33. hxg4 {[%clk 0:00:08.8]}
33... Rxg4 {[%clk 0:00:23.6]} 34. Rg3 {[%clk 0:00:07.4]} 34... Rxg3 {[%clk
0:00:20.6]} 35. fxg3 {[%clk 0:00:08.3]} 35... Qg7 {[%clk 0:00:17.4]} 36. Qh5
{[%clk 0:00:06.6]} 36... Qg5+ {[%clk 0:00:15.5]} 37. Qxg5 {[%clk 0:00:06.2]}
37... fxg5 {[%clk 0:00:16.4]} 38. Kc3 {[%clk 0:00:07.1]} 38... h5 {[%clk
0:00:13.9]} 39. Be8 {[%clk 0:00:04.8]} 39... h4 {[%clk 0:00:13.5]} 40. gxh4
{[%clk 0:00:05.7]} 40... gxh4 {[%clk 0:00:14.4]} 41. Bh5 {[%clk 0:00:05.6]}
41... h3 {[%clk 0:00:14.1]} 42. Kxc4 {[%clk 0:00:05.9]} 42... h2 {[%clk
0:00:13.7]} 43. Bf3 {[%clk 0:00:06.3]} 43... Kg7 {[%clk 0:00:13.6]} 44. Kb5
{[%clk 0:00:05.1]} 44... Kf6 {[%clk 0:00:13.4]} 45. Kb6 {[%clk 0:00:05.4]} 45...
Nb8 {[%clk 0:00:13.2]} 46. Kb5 {[%clk 0:00:04.6]} 46... N4a6 {[%clk 0:00:12.9]}
47. Bh1 {[%clk 0:00:04.6]} 47... Kg5 {[%clk 0:00:12.8]} 48. Kc4 {[%clk
0:00:04.8]} 48... Nc7 {[%clk 0:00:12.2]} 49. Kd3 {[%clk 0:00:05.7]} 49... Ne8
{[%clk 0:00:12.3]} 50. Kc4 {[%clk 0:00:04.9]} 50... Nf6 {[%clk 0:00:12.2]} 51.
Kb5 {[%clk 0:00:04.7]} 51... Nfd7 {[%clk 0:00:09.9]} 52. b3 {[%clk 0:00:03.6]}
52... Kf4 {[%clk 0:00:10.2]} 53. f6 {[%clk 0:00:02.7]} 53... Nxf6 {[%clk
0:00:09.7]} 54. Kb6 {[%clk 0:00:03.6]} 54... Nxe4 {[%clk 0:00:08.4]} 55. Kc7
{[%clk 0:00:04.5]} 55... Na6+ {[%clk 0:00:08.3]} 56. Kb6 {[%clk 0:00:04.9]}
56... Nb8 {[%clk 0:00:08.4]} 57. Kc7 {[%clk 0:00:05.8]} 57... Na6+ {[%clk
0:00:07.5]} 58. Kc8 {[%clk 0:00:05.9]} 58... Nec5 {[%clk 0:00:05.8]} 59. b4
{[%clk 0:00:05.6]} 59... Nxb7 {[%clk 0:00:02.6]} 60. Kxb7 {[%clk 0:00:05.5]}
60... Nxb4 {[%clk 0:00:03.1]} 61. Kc7 {[%clk 0:00:06.4]} 61... e4 {[%clk
0:00:03.4]} 62. Kxd6 {[%clk 0:00:06]} 62... e3 {[%clk 0:00:04.3]} 63. Kc5 {[%clk
0:00:06.5]} 63... Nxd5 {[%clk 0:00:03.8]} 64. Kxd5 {[%clk 0:00:05.4]} 64... e2
{[%clk 0:00:04.7]} 65. Kd4 {[%clk 0:00:06]} 65... e1=Q {[%clk 0:00:05.1]} 66.
Kd3 {[%clk 0:00:06.9]} 66... Qg1 {[%clk 0:00:05.7]} 67. Bd5 {[%clk 0:00:06.1]}
67... Qg3+ {[%clk 0:00:05.4]} 68. Kd4 {[%clk 0:00:05.7]} 68... Qg1+ {[%clk
0:00:06.3]} 0-1